bitfinex/quotes_BTCUSD_20250826
["timestamp","ask_amount","ask_price","bid_price","bid_amount"]
[1756185130401,0.028226,110450.0,110440.0,0.27781582]
[1756185131620,0.001,110450.0,110440.0,0.27781582]
[1756185139029,0.001,110450.0,110440.0,0.30725987]
[1756185139240,0.001,110450.0,110440.0,0.27781582]
[1756185141392,0.001,110450.0,110440.0,0.43081582]
[1756185141613,0.001,110450.0,110440.0,0.27781582]
[1756185142009,0.001,110450.0,110440.0,0.43081582]
[1756185142929,0.001,110450.0,110440.0,0.43077582]
[1756185145272,0.001,110450.0,110440.0,0.27781582]
[1756185145719,0.001,110450.0,110440.0,0.43073582]
[1756185147658,0.04401373,110470.0,110460.0,0.18106101]
[1756185147870,0.05247868,110470.0,110460.0,0.43040303]
[1756185148131,0.02525768,110470.0,110460.0,0.43040303]
[1756185149204,0.01679273,110470.0,110460.0,0.43040303]
[1756185149418,0.02526041,110470.0,110460.0,0.43040303]
[1756185150166,0.02626041,110470.0,110460.0,0.43040303]
[1756185150360,0.02626041,110470.0,110460.0,0.27756303]
[1756185150578,0.02626041,110470.0,110460.0,0.43040303]
[1756185151025,0.02626041,110470.0,110460.0,0.43036303]
[1756185152417,0.027219,110480.0,110470.0,0.18104462]
[1756185152569,0.22691142,110480.0,110470.0,0.18104462]
[1756185152790,0.22691142,110480.0,110470.0,0.18406462]
[1756185153167,0.25273652,110480.0,110470.0,0.18406462]
[1756185153373,0.25273652,110480.0,110470.0,0.18608462]
[1756185153651,0.25278418,110480.0,110470.0,0.18608462]
[1756185154044,0.25278418,110480.0,110460.0,0.27252303]
[1756185154263,0.18104462,110470.0,110460.0,0.27554303]
[1756185154464,0.18104462,110470.0,110460.0,0.43036303]
[1756185155096,0.23412033,110480.0,110460.0,0.43036303]
[1756185155243,0.25106651,110480.0,110460.0,0.43036303]
[1756185155935,0.18104462,110470.0,110460.0,0.27756303]
[1756185156051,0.01694618,110470.0,110460.0,0.43036303]
[1756185156468,0.25306651,110480.0,110460.0,0.43036303]
[1756185157413,0.25106651,110480.0,110470.0,0.18104462]
[1756185157744,0.25278651,110480.0,110470.0,0.18104462]
[1756185158294,0.27231862,110480.0,110470.0,0.18104462]
[1756185158701,0.27432789,110480.0,110470.0,0.18104462]
[1756185158921,0.27232789,110480.0,110470.0,0.18104462]
[1756185159128,0.27232789,110480.0,110460.0,0.42834303]
[1756185159331,0.18104462,110470.0,110460.0,0.42834303]
[1756185159552,0.19800007,110470.0,110460.0,0.43036303]
[1756185160793,0.19972007,110470.0,110460.0,0.43036303]
[1756185161016,0.19800007,110470.0,110460.0,0.43036303]
[1756185161218,0.01695545,110470.0,110460.0,0.43036303]
[1756185161432,0.25108556,110480.0,110470.0,0.18104462]
[1756185161627,0.27062879,110480.0,110470.0,0.18306462]
[1756185161805,0.27062879,110480.0,110470.0,0.18608462]
[1756185162007,0.27234879,110480.0,110470.0,0.18608462]
[1756185162206,0.27234879,110480.0,110470.0,0.15582]
[1756185162570,0.27062879,110480.0,110470.0,0.33888462]
[1756185162788,0.27234879,110480.0,110470.0,0.15784]
[1756185163509,0.27234879,110480.0,110470.0,0.33888462]
[1756185163712,0.27062879,110480.0,110470.0,0.33888462]
[1756185163889,0.27234879,110480.0,110470.0,0.33888462]
[1756185164187,0.27434879,110480.0,110470.0,0.15784]
[1756185164596,0.28283468,110480.0,110470.0,0.00504]
[1756185164825,0.18104462,110470.0,110460.0,0.27252303]
[1756185165024,0.2260389,110470.0,110460.0,0.42738303]
[1756185165574,0.2260389,110470.0,110460.0,0.43040303]
[1756185166404,0.2277589,110470.0,110460.0,0.09146202]
[1756185166743,0.2277589,110470.0,110460.0,0.24430202]
[1756185167988,0.2277589,110470.0,110460.0,0.09448202]
[1756185168189,0.20230785,110470.0,110460.0,0.24736202]
[1756185168419,0.22777962,110470.0,110460.0,0.24736202]
[1756185168737,0.22778112,110470.0,110460.0,0.09448202]
[1756185168943,0.22778112,110470.0,110460.0,0.24740202]
[1756185170420,0.22778112,110470.0,110460.0,0.24942202]
[1756185171042,0.22778112,110470.0,110460.0,0.24434202]
[1756185171602,0.22778112,110470.0,110460.0,0.24736202]
[1756185172051,0.22778112,110470.0,110460.0,0.24434202]
[1756185172269,0.18106101,110460.0,110450.0,0.14591699]
[1756185172478,0.20825852,110460.0,110450.0,0.16408202]
[1756185172699,0.22782729,110460.0,110450.0,0.31696202]
[1756185173955,0.22782729,110460.0,110450.0,0.31796202]
[1756185174430,0.20825852,110460.0,110450.0,0.31796202]
[1756185175506,0.20825852,110460.0,110450.0,0.31998202]
[1756185176266,0.1912716,110460.0,110450.0,0.31998202]
[1756185177699,0.19127058,110460.0,110450.0,0.31998202]
[1756185177905,0.18955058,110460.0,110450.0,0.31998202]
[1756185178155,0.00848947,110460.0,110450.0,0.50105943]
[1756185178550,0.19126984,110460.0,110450.0,0.31494202]
[1756185178764,0.19126984,110460.0,110450.0,0.15388]
[1756185178980,0.60893949,110460.0,110450.0,0.15436]
[1756185179202,0.57524667,110460.0,110450.0,0.15436]
[1756185179422,0.56887884,110460.0,110450.0,0.15436]
[1756185179863,0.59610484,110460.0,110450.0,0.001]
[1756185180075,0.74851484,110460.0,110450.0,0.001]
[1756185180533,0.59503484,110460.0,110450.0,0.001]
[1756185180755,0.59502575,110460.0,110450.0,0.001]
[1756185181776,0.18107741,110450.0,110440.0,0.15642602]
[1756185182036,0.18956624,110450.0,110440.0,0.15845602]
[1756185182990,0.18956624,110450.0,110440.0,0.15945602]
[1756185183374,0.18107741,110450.0,110440.0,0.15945602]
[1756185183583,0.18107741,110450.0,110440.0,0.16145602]
[1756185183729,0.20830341,110450.0,110440.0,0.16145602]
[1756185184629,0.21002341,110450.0,110440.0,0.16145602]
[1756185187804,0.20830341,110450.0,110440.0,0.16145602]
[1756185191670,0.20858341,110450.0,110440.0,0.16194]
[1756185191890,0.20858341,110450.0,110440.0,0.16094]
[1756185193524,0.20858341,110450.0,110440.0,0.00507]
[1756185193738,0.20858341,110450.0,110440.0,0.15886]
[1756185195194,0.1810938,110440.0,110430.0,0.14596699]
[1756185195419,0.1828138,110440.0,110430.0,0.30187699]
[1756185195642,0.1810938,110440.0,110430.0,0.30187699]
[1756185196296,0.2083218,110440.0,110430.0,0.30187699]
[1756185196519,0.2083218,110440.0,110430.0,0.30192465]
[1756185196964,0.2083218,110440.0,110430.0,0.30492465]
[1756185197372,0.2100418,110440.0,110430.0,0.15104465]
[1756185197600,0.2100418,110440.0,110430.0,0.15700766]
[1756185198529,0.2100418,110440.0,110430.0,0.16210766]
[1756185198734,0.2083218,110440.0,110430.0,0.16210766]
[1756185199376,0.21852019,110440.0,110430.0,0.16210766]
[1756185200879,0.21680019,110440.0,110430.0,0.16210766]
[1756185201075,0.21852019,110440.0,110430.0,0.16210766]
[1756185201297,0.21852019,110440.0,110430.0,0.16007766]
[1756185201537,0.21852019,110440.0,110430.0,0.15700766]
[1756185202393,0.21852019,110440.0,110430.0,0.16007766]
[1756185202735,0.21852019,110440.0,110430.0,0.16210766]
[1756185202938,0.21852019,110440.0,110430.0,0.15700766]
[1756185204163,0.21852019,110440.0,110430.0,0.00304766]
[1756185204305,0.55852019,110440.0,110430.0,0.15704766]
[1756185204505,0.5754884,110440.0,110430.0,0.15704766]
[1756185205192,0.5500418,110440.0,110430.0,0.15704766]
[1756185205409,0.57377689,110440.0,110430.0,0.16228766]
[1756185205838,0.57377838,110440.0,110430.0,0.16228766]
[1756185206227,0.57377838,110440.0,110430.0,0.16128766]
[1756185207179,0.57377838,110440.0,110430.0,0.15928766]
[1756185207791,0.05268458,110440.0,110430.0,0.41369485]
[1756185208000,0.03571303,110440.0,110430.0,0.41369485]
[1756185208203,0.00848503,110440.0,110430.0,0.50515687]
[1756185209876,0.18957883,110440.0,110430.0,0.43185988]
[1756185212901,0.00848503,110440.0,110430.0,0.43185988]
[1756185214704,0.00849221,110440.0,110430.0,0.43185988]
[1756185215288,0.54830341,110450.0,110440.0,0.1810938]
[1756185215495,0.57378053,110450.0,110440.0,0.1810938]
[1756185215704,0.57378053,110450.0,110440.0,0.1863338]
[1756185215914,0.05270312,110450.0,110440.0,0.1863338]
[1756185216118,0.03571837,110450.0,110440.0,0.27779582]
[1756185216336,0.00849179,110450.0,110440.0,0.27779582]
[1756185217750,0.00949179,110450.0,110440.0,0.27779582]
[1756185217952,0.00849179,110450.0,110440.0,0.27779582]
[1756185218526,0.55733806,110460.0,110450.0,0.18107741]
[1756185218730,0.56582647,110460.0,110450.0,0.33685741]
[1756185219095,0.56582647,110460.0,110450.0,0.34007741]
[1756185219301,0.56754647,110460.0,110450.0,0.34007741]
[1756185219587,0.56582647,110460.0,110450.0,0.34007741]
[1756185220999,0.56582417,110460.0,110450.0,0.34007741]
[1756185221213,0.56682417,110460.0,110450.0,0.34007741]
[1756185224190,0.56682127,110460.0,110450.0,0.34007741]
[1756185225020,0.56854127,110460.0,110450.0,0.34007741]
[1756185225251,0.56682127,110460.0,110450.0,0.34007741]
[1756185226181,0.56854127,110460.0,110450.0,0.34007741]
[1756185226816,0.22682127,110460.0,110450.0,0.34007741]
[1756185229323,0.22681821,110460.0,110450.0,0.34007741]
[1756185230238,0.03670415,110460.0,110450.0,0.34007741]
[1756185231231,0.21776516,110460.0,110450.0,0.34007741]
[1756185232744,0.21776566,110460.0,110450.0,0.34007741]
[1756185233827,0.20928501,110460.0,110450.0,0.34007741]
[1756185234046,0.21776621,110460.0,110450.0,0.34007741]
[1756185234784,0.03670589,110460.0,110450.0,0.43153943]
[1756185235008,0.001,110460.0,110450.0,0.43153943]
[1756185235966,0.001,110460.0,110450.0,0.27777943]
[1756185236114,0.001,110460.0,110450.0,0.43129943]
[1756185236341,0.00948452,110460.0,110450.0,0.43129943]
[1756185236526,0.00948452,110460.0,110450.0,0.27777943]
[1756185236734,0.00948452,110460.0,110450.0,0.43125943]
[1756185237490,0.00848452,110460.0,110450.0,0.43125943]
[1756185239148,0.18954553,110460.0,110450.0,0.27777943]
[1756185239348,0.18954553,110460.0,110450.0,0.43121943]
[1756185239650,0.18107741,110450.0,110440.0,0.18410653]
[1756185239958,0.18106101,110460.0,110450.0,0.18107741]
[1756185240163,0.2167703,110460.0,110450.0,0.18620741]
[1756185240986,0.18107741,110450.0,110440.0,0.27856855]
[1756185241159,0.18107741,110450.0,110440.0,0.43207855]
[1756185241354,0.18107741,110450.0,110440.0,0.43107855]
[1756185242208,0.20828301,110460.0,110440.0,0.43107855]
[1756185242418,0.21677327,110460.0,110440.0,0.43107855]
[1756185242740,0.18107741,110450.0,110440.0,0.27767855]
[1756185242891,0.18107741,110450.0,110440.0,0.43107855]
[1756185243702,0.18107741,110450.0,110440.0,0.43307855]
[1756185244506,0.18107741,110450.0,110440.0,0.43407855]
[1756185245643,0.18107741,110450.0,110440.0,0.28067855]
[1756185246025,0.18107741,110450.0,110440.0,0.43399855]
[1756185246706,0.18241741,110450.0,110440.0,0.09748202]
[1756185246905,0.19091621,110450.0,110440.0,0.25080202]
[1756185247327,0.19091621,110450.0,110440.0,0.003]
[1756185247531,0.61184893,110450.0,110440.0,0.003]
[1756185247777,0.53807486,110450.0,110440.0,0.003]
[1756185247963,0.59125926,110450.0,110440.0,0.003]
[1756185248157,0.58488484,110450.0,110440.0,0.003]
[1756185248793,0.73824484,110450.0,110440.0,0.002]
[1756185249103,0.58488484,110450.0,110440.0,0.002]
[1756185249358,0.71866286,110450.0,110440.0,0.002]
[1756185249562,0.56530286,110450.0,110440.0,0.00502]
[1756185249771,0.71866286,110450.0,110440.0,0.00502]
[1756185250076,0.56530286,110450.0,110440.0,0.00713]
[1756185250330,0.54830541,110450.0,110440.0,0.00513]
[1756185250534,0.56627918,110450.0,110440.0,0.00513]
[1756185251343,0.54930541,110450.0,110440.0,0.00513]
[1756185252095,0.1810938,110440.0,110430.0,4.766e-05]
[1756185252297,0.1810938,110440.0,110430.0,0.24792968]
[1756185252499,0.1810938,110440.0,110430.0,0.25003968]
[1756185252901,0.1810938,110440.0,110430.0,0.43114988]
[1756185254209,0.54830541,110450.0,110430.0,0.43114988]
[1756185254621,0.54830541,110450.0,110440.0,0.00302]
[1756185254802,0.54830541,110450.0,110440.0,0.00513]
[1756185255626,0.54930541,110450.0,110440.0,0.00513]
[1756185256484,0.54930541,110450.0,110440.0,0.1862238]
[1756185256711,0.20930541,110450.0,110440.0,0.1862238]
[1756185256915,0.18107741,110450.0,110440.0,0.1862238]
[1756185257330,0.18207741,110450.0,110440.0,0.1862238]
[1756185257507,0.18107741,110450.0,110440.0,0.1862238]
[1756185258754,0.37070106,110460.0,110440.0,0.1862238]
[1756185258949,0.72766611,110460.0,110450.0,0.00302]
[1756185259150,0.57430611,110460.0,110450.0,0.00513]
[1756185259835,0.58278867,110460.0,110450.0,0.00513]
[1756185260863,0.58378867,110460.0,110450.0,0.00513]
[1756185261233,0.57530611,110460.0,110450.0,0.00513]
[1756185261453,0.5837888,110460.0,110450.0,0.00513]
[1756185262717,0.5837888,110460.0,110450.0,0.18620741]
[1756185263981,0.5837888,110460.0,110450.0,0.00513]
[1756185267558,0.57530622,110460.0,110450.0,0.00513]
[1756185267918,0.5837916,110460.0,110450.0,0.18620741]
[1756185268350,0.54751155,110460.0,110450.0,0.18620741]
[1756185269870,0.54751155,110460.0,110450.0,0.33932741]
[1756185270122,0.54751155,110460.0,110450.0,0.18620741]
[1756185270355,0.54751155,110460.0,110450.0,0.33928741]
[1756185270889,0.55600774,110460.0,110450.0,0.33928741]
[1756185271492,0.55600834,110460.0,110450.0,0.33928741]
[1756185272092,0.55600834,110460.0,110450.0,0.00513]
[1756185272317,0.55600834,110460.0,110450.0,0.15817]
[1756185273253,0.55600834,110460.0,110450.0,0.00302]
[1756185273459,0.55600834,110460.0,110450.0,0.15304]
[1756185274174,0.55600834,110460.0,110450.0,0.15611]
[1756185275176,0.55600834,110460.0,110450.0,0.00307]
[1756185275385,0.55600834,110460.0,110450.0,0.00502]
[1756185277323,0.55600913,110460.0,110450.0,0.00307]
[1756185278375,0.55600913,110460.0,110450.0,0.00502]
[1756185278580,0.55600913,110460.0,110450.0,0.00307]
[1756185279194,0.58323213,110460.0,110450.0,0.00307]
[1756185279934,0.18107741,110450.0,110440.0,0.41050051]
[1756185280135,0.18107741,110450.0,110440.0,0.35087253]
[1756185280336,0.18107741,110450.0,110440.0,0.50391253]
[1756185284193,0.18957158,110450.0,110440.0,0.50391253]
[1756185285863,0.18957158,110450.0,110440.0,0.35087253]
[1756185286063,0.18957158,110450.0,110440.0,0.50391253]
[1756185286848,0.18957158,110450.0,110440.0,0.50387281]
[1756185287311,0.18957158,110450.0,110440.0,0.35087281]
[1756185287522,0.18957158,110450.0,110440.0,0.50387281]
[1756185288720,0.18957158,110450.0,110440.0,0.35087281]
[1756185288973,0.18957158,110450.0,110440.0,0.50387281]
[1756185289394,0.20656781,110450.0,110440.0,0.24948202]
[1756185289801,0.19807364,110450.0,110440.0,0.24948202]
[1756185290008,0.20657177,110450.0,110440.0,0.24948202]
[1756185290213,0.20657177,110450.0,110440.0,0.43057582]
[1756185290370,0.20657218,110450.0,110440.0,0.43057582]
[1756185290760,0.206573,110450.0,110440.0,0.43057582]
[1756185292066,0.233797,110450.0,110440.0,0.43057582]
[1756185292469,0.03572253,110450.0,110440.0,0.43057582]
[1756185293621,0.00849853,110450.0,110440.0,0.43057582]
[1756185294626,0.18957594,110450.0,110440.0,0.43057582]
[1756185297427,0.18957594,110450.0,110440.0,0.24948202]
[1756185297833,0.18957594,110450.0,110440.0,0.43057582]
[1756185298683,0.18957594,110450.0,110440.0,0.27757582]
[1756185298821,0.18957594,110450.0,110440.0,0.43057582]
[1756185299229,0.18107741,110450.0,110440.0,0.43057582]
[1756185299442,0.18957659,110450.0,110440.0,0.43057582]
[1756185299858,0.18957659,110450.0,110440.0,0.00307]
[1756185300063,0.20657543,110450.0,110440.0,0.15607]
[1756185300257,0.20657543,110450.0,110430.0,0.07288766]
[1756185300258,0.1810938,110440.0,110430.0,0.07288766]
[1756185300462,0.1810938,110440.0,110430.0,0.22797766]
[1756185300892,0.2083218,110440.0,110430.0,0.22797766]
[1756185301096,0.21682171,110440.0,110430.0,0.22797766]
[1756185301519,0.21682171,110440.0,110430.0,0.22897766]
[1756185301759,0.21682193,110440.0,110430.0,0.23097766]
[1756185301882,0.21682193,110440.0,110430.0,0.07797766]
[1756185302087,0.21682193,110440.0,110430.0,0.23097766]
[1756185302673,0.21682193,110440.0,110430.0,0.15924766]
[1756185302880,0.57381557,110440.0,110430.0,0.15604766]
[1756185303072,0.57381557,110440.0,110430.0,0.00304766]
[1756185305335,0.72681557,110440.0,110430.0,0.00204766]
[1756185305515,0.72681557,110440.0,110430.0,4.766e-05]
[1756185305716,0.74637072,110440.0,110430.0,4.766e-05]
[1756185307134,0.78690873,110440.0,110430.0,4.766e-05]
[1756185307373,0.78890873,110440.0,110430.0,4.766e-05]
[1756185307580,0.63590873,110440.0,110430.0,4.766e-05]
[1756185307809,0.78887753,110440.0,110430.0,4.766e-05]
[1756185308017,0.78885862,110440.0,110430.0,4.766e-05]
[1756185308670,0.97176593,110440.0,110430.0,4.766e-05]
[1756185309147,0.88032064,110440.0,110430.0,4.766e-05]
[1756185310324,0.86076549,110440.0,110430.0,4.766e-05]
[1756185312046,0.86075036,110440.0,110430.0,4.766e-05]
[1756185312827,0.61187728,110440.0,110430.0,4.766e-05]
[1756185313039,0.82020408,110440.0,110430.0,4.766e-05]
[1756185316678,0.66720408,110440.0,110430.0,4.766e-05]
[1756185316868,0.82024408,110440.0,110430.0,0.00324766]
[1756185317427,0.8202272,110440.0,110430.0,0.00324766]
[1756185318245,0.82022713,110440.0,110430.0,0.00324766]
[1756185318703,0.82022713,110440.0,110430.0,4.766e-05]
[1756185320085,0.66718713,110440.0,110430.0,4.766e-05]
[1756185320285,0.82022713,110440.0,110430.0,4.766e-05]
[1756185320729,0.66718713,110440.0,110430.0,4.766e-05]
[1756185321272,0.1811102,110430.0,110420.0,0.00226976]
[1756185321473,0.20652178,110430.0,110420.0,0.00435976]
[1756185322699,0.23375478,110430.0,110420.0,0.00435976]
[1756185324804,0.20652178,110430.0,110420.0,0.00435976]
[1756185325035,0.18958068,110430.0,110420.0,0.18548636]
[1756185325265,0.20753322,110430.0,110420.0,0.18548636]
[1756185325486,0.02642302,110430.0,110420.0,0.27694838]
[1756185325722,0.001,110430.0,110420.0,0.27694838]
[1756185327857,0.37040028,110450.0,110430.0,0.18110312]
[1756185328061,0.58280124,110450.0,110440.0,0.00507]
[1756185329263,0.58480124,110450.0,110440.0,0.00507]
[1756185329626,0.21757224,110450.0,110440.0,0.1861638]
[1756185329852,0.21757224,110450.0,110440.0,0.00507]
[1756185331066,0.21557224,110450.0,110440.0,0.00507]
[1756185331541,0.21657224,110450.0,110440.0,0.00507]
[1756185331955,0.21657224,110450.0,110440.0,0.1861638]
[1756185332124,0.20751837,110450.0,110440.0,0.1861638]
[1756185333405,0.20751837,110450.0,110440.0,0.00507]
[1756185336401,0.18207741,110450.0,110440.0,0.00507]
[1756185336611,0.20751702,110450.0,110440.0,0.00507]
[1756185337168,0.20751642,110450.0,110440.0,0.00507]
[1756185337365,0.19055668,110450.0,110440.0,0.00507]
[1756185341253,0.19055668,110450.0,110440.0,0.00312]
[1756185341689,0.1810938,110440.0,110430.0,0.07641699]
[1756185341902,0.1810938,110440.0,110430.0,0.00312]
[1756185342546,0.1811102,110430.0,110420.0,0.183347]
[1756185342758,0.1811102,110430.0,110420.0,0.3391966]
[1756185343417,0.2083248,110440.0,110420.0,0.3391966]
[1756185343640,0.18957251,110440.0,110420.0,0.3360766]
[1756185343901,0.18957251,110440.0,110430.0,0.00312]
[1756185344112,0.18957251,110440.0,110430.0,0.00507]
[1756185344605,0.18957251,110440.0,110430.0,0.1861802]
[1756185344810,0.1810938,110440.0,110430.0,0.1861802]
[1756185348277,0.37036128,110450.0,110430.0,0.1861802]
[1756185348510,0.1810938,110440.0,110430.0,0.1830602]
[1756185348680,0.1810938,110440.0,110430.0,0.3360602]
[1756185349137,0.1810938,110440.0,110430.0,0.15807]
[1756185349342,0.1895766,110440.0,110430.0,0.15807]
[1756185349549,0.1895766,110440.0,110430.0,0.3391802]
[1756185350138,0.0084828,110440.0,110430.0,0.3391802]
[1756185350339,0.21736128,110450.0,110440.0,0.1810938]
[1756185350559,0.22584509,110450.0,110440.0,0.1830438]
[1756185350715,0.22584509,110450.0,110440.0,0.1861638]
[1756185351532,0.24281573,110450.0,110440.0,0.1861638]
[1756185351802,0.24381573,110450.0,110440.0,0.1861638]
[1756185355633,0.21836128,110450.0,110440.0,0.1861638]
[1756185355837,0.24384728,110450.0,110440.0,0.1861638]
[1756185356412,0.22685661,110450.0,110440.0,0.1861638]
[1756185356619,0.24384896,110450.0,110440.0,0.1861638]
[1756185358633,0.24384896,110450.0,110440.0,0.153]
[1756185358847,0.24384896,110450.0,110440.0,0.15616]
[1756185359182,0.24384896,110450.0,110440.0,0.15827]
[1756185361097,0.24384896,110450.0,110440.0,0.00527]
[1756185361295,0.24384896,110450.0,110440.0,0.15827]
[1756185361527,0.24384896,110450.0,110440.0,0.00527]
[1756185361759,0.1810938,110440.0,110430.0,0.2539102]
[1756185361984,0.18958913,110440.0,110430.0,0.16426202]
[1756185362204,0.18958913,110440.0,110430.0,0.31937202]
[1756185362653,0.18958913,110440.0,110430.0,0.50048222]
[1756185363699,0.18958913,110440.0,110430.0,0.34748222]
[1756185363930,0.18958913,110440.0,110430.0,0.22791]
[1756185364460,0.18959082,110440.0,110430.0,0.4090202]
[1756185365746,0.18959082,110440.0,110430.0,0.22791]
[1756185366164,0.18959082,110440.0,110430.0,0.00527]
[1756185366375,0.18111969,110430.0,110420.0,0.030387]
[1756185366594,0.18961671,110430.0,110420.0,0.183347]
[1756185366825,0.18961671,110430.0,110420.0,0.030387]
[1756185367046,0.20660997,110430.0,110420.0,0.180187]
[1756185367278,0.20660997,110430.0,110420.0,0.15612]
[1756185367755,0.1811266,110420.0,110410.0,0.0728]
[1756185368017,0.18962362,110420.0,110410.0,0.22787]
[1756185368247,0.18962362,110420.0,110410.0,0.07491]
[1756185368468,0.18962362,110420.0,110410.0,0.15823]
[1756185368689,0.20686136,110420.0,110410.0,0.15823]
[1756185369599,0.20686136,110420.0,110410.0,0.00727]
[1756185369815,0.20686136,110420.0,110410.0,0.16112]
[1756185370033,0.20686136,110420.0,110410.0,0.15912]
[1756185370166,0.20686136,110420.0,110410.0,0.15612]
[1756185370586,0.20684687,110420.0,110410.0,0.15612]
[1756185370962,0.18115783,110410.0,110400.0,0.00316]
[1756185371146,0.18115783,110410.0,110400.0,0.15823]
[1756185372182,0.18115783,110410.0,110400.0,0.33938942]
[1756185372388,0.18115783,110410.0,110400.0,0.34042942]
[1756185373045,0.20742067,110420.0,110400.0,0.34042942]
[1756185373247,0.215899,110420.0,110400.0,0.33726942]
[1756185373451,0.215899,110420.0,110410.0,0.00316]
[1756185373660,0.215899,110420.0,110410.0,0.00527]
[1756185373877,0.21589598,110420.0,110410.0,0.00527]
[1756185374258,0.20683965,110420.0,110410.0,0.33941301]
[1756185374502,0.19836434,110420.0,110410.0,0.33941301]
[1756185375536,0.19836434,110420.0,110410.0,0.43087503]
[1756185377447,0.18124909,110430.0,110410.0,0.43087503]
[1756185377655,0.5297207,110430.0,110420.0,0.00316]
[1756185377869,0.5297207,110430.0,110420.0,0.00527]
[1756185378073,0.1897207,110430.0,110420.0,0.00527]
[1756185379412,0.20713194,110430.0,110420.0,0.00527]
[1756185379620,0.20813194,110430.0,110420.0,0.00527]
[1756185379826,0.20713194,110430.0,110420.0,0.00527]
[1756185380025,0.02601225,110430.0,110420.0,0.18866068]
[1756185380261,0.01854064,110430.0,110420.0,0.1863966]
[1756185380690,0.19965084,110430.0,110420.0,0.1863966]
[1756185381241,0.19965084,110430.0,110420.0,0.15827]
[1756185382666,0.53965084,110430.0,110420.0,0.15827]
[1756185383681,0.35854064,110430.0,110420.0,0.34166068]
[1756185383895,0.35854064,110430.0,110420.0,0.3393966]
[1756185384511,0.35754064,110430.0,110420.0,0.43085862]
[1756185385640,0.53865084,110430.0,110420.0,0.43085862]
[1756185389577,0.02602268,110430.0,110420.0,0.43085862]
[1756185389740,0.01754064,110430.0,110420.0,0.43085862]
[1756185390287,0.02602299,110430.0,110420.0,0.43085862]
[1756185390507,0.01754064,110430.0,110420.0,0.43085862]
[1756185390862,0.19865084,110430.0,110420.0,0.43085862]
[1756185391672,0.20713472,110430.0,110420.0,0.43085862]
[1756185392307,0.02602452,110430.0,110420.0,0.43085862]
[1756185392743,0.0260252,110430.0,110420.0,0.43085862]
[1756185392919,0.2071354,110430.0,110420.0,0.43085862]
[1756185395901,0.02602793,110430.0,110420.0,0.43085862]
[1756185396104,0.00861669,110430.0,110420.0,0.43085862]
[1756185396364,0.0001294,110430.0,110420.0,0.43085862]
[1756185396580,0.0001294,110430.0,110420.0,0.45808862]
[1756185397618,4.145e-05,110430.0,110420.0,0.45808862]
[1756185400753,4.145e-05,110430.0,110420.0,0.45804862]
[1756185402428,4.145e-05,110430.0,110420.0,0.30508862]
[1756185402643,4.145e-05,110430.0,110420.0,0.45804862]
[1756185402852,4.145e-05,110430.0,110420.0,0.30508862]
[1756185403242,4.145e-05,110430.0,110420.0,0.45804862]
[1756185405211,4.145e-05,110430.0,110420.0,0.30508862]
[1756185405427,4.145e-05,110430.0,110420.0,0.45804862]
[1756185405626,4.145e-05,110430.0,110420.0,0.30508862]
[1756185405856,4.145e-05,110430.0,110420.0,0.45804862]
[1756185406943,4.145e-05,110430.0,110420.0,0.30508862]
[1756185407154,4.145e-05,110430.0,110420.0,0.45804862]
[1756185408505,0.1811266,110420.0,110410.0,0.25391927]
[1756185408725,0.1811266,110420.0,110410.0,0.50035503]
[1756185409081,0.1811266,110420.0,110410.0,0.49834503]
[1756185409284,0.1811266,110420.0,110410.0,0.50035503]
[1756185409862,0.18115165,110430.0,110420.0,0.1811266]
[1756185410107,0.18964468,110430.0,110420.0,0.1862766]
[1756185411131,0.1811102,110430.0,110420.0,0.00515]
[1756185412902,0.1811102,110430.0,110420.0,0.15296]
[1756185413108,0.1811266,110420.0,110410.0,0.42870503]
[1756185413402,0.1811266,110420.0,110410.0,0.24756202]
[1756185413657,0.1811266,110420.0,110410.0,0.1561]
[1756185413822,0.1811266,110420.0,110410.0,0.15296]
[1756185414393,0.1811266,110420.0,110410.0,0.15396]
[1756185414625,0.5211266,110420.0,110410.0,0.15396]
[1756185414744,0.5211266,110420.0,110410.0,0.15596]
[1756185414969,0.5211266,110420.0,110410.0,0.003]
[1756185415172,0.5211266,110420.0,110410.0,0.15596]
[1756185415397,0.53810732,110420.0,110410.0,0.15596]
[1756185416235,0.53810732,110420.0,110410.0,0.003]
[1756185416442,0.5211266,110420.0,110410.0,0.001]
[1756185416842,0.18114301,110410.0,110400.0,0.15296]
[1756185417049,0.18114301,110410.0,110400.0,0.15611]
[1756185418510,0.18114301,110410.0,110400.0,0.00315]
[1756185418717,0.18114301,110410.0,110400.0,0.15611]
[1756185418827,0.18114301,110410.0,110400.0,0.15812]
[1756185419227,0.52114301,110410.0,110400.0,0.15812]
[1756185419474,0.52114301,110410.0,110400.0,0.15611]
[1756185420595,0.52114301,110410.0,110400.0,0.15812]
[1756185421590,0.52114301,110410.0,110400.0,0.15611]
[1756185421978,0.52114301,110410.0,110400.0,0.15812]
[1756185424269,0.52114301,110410.0,110400.0,0.15611]
[1756185424625,0.52114301,110410.0,110400.0,0.15812]
[1756185425241,0.52114301,110410.0,110400.0,0.33927942]
[1756185425916,0.34,110410.0,110400.0,0.33927942]
[1756185426115,0.52114301,110410.0,110400.0,0.33927942]
[1756185428956,0.1811266,110420.0,110400.0,0.43074144]
[1756185429261,0.52960381,110420.0,110410.0,0.00315]
[1756185429691,0.5211266,110420.0,110410.0,0.00516]
[1756185429875,0.52960423,110420.0,110410.0,0.00516]
[1756185430273,0.53060423,110420.0,110410.0,0.00516]
[1756185430602,0.52960423,110420.0,110410.0,0.00516]
[1756185430880,0.53060423,110420.0,110410.0,0.00516]
[1756185431224,0.001,110420.0,110410.0,1.03030957]
[1756185431436,0.001,110420.0,110410.0,1.02578101]
[1756185431631,0.001,110420.0,110410.0,0.54869604]
[1756185431844,0.001,110420.0,110410.0,0.59036713]
[1756185432080,0.001,110420.0,110410.0,0.60636105]
[1756185432706,0.001,110420.0,110410.0,0.45340105]
[1756185432918,0.35596557,110450.0,110440.0,0.1810938]
[1756185433134,0.35803188,110450.0,110440.0,0.42551582]
[1756185433500,0.35803188,110450.0,110440.0,0.43067582]
[1756185433674,0.35605188,110450.0,110440.0,0.43067582]
[1756185435219,0.35803188,110450.0,110440.0,0.27771582]
[1756185435559,0.35803188,110450.0,110440.0,0.42551582]
[1756185436096,0.35803188,110450.0,110440.0,0.43067582]
[1756185436635,0.35803188,110450.0,110440.0,0.42551582]
[1756185436837,0.53910929,110450.0,110440.0,0.42551582]
[1756185437059,0.35803188,110450.0,110440.0,0.42551582]
[1756185437615,0.35803188,110450.0,110440.0,0.43067582]
[1756185439228,0.53910929,110450.0,110440.0,0.43067582]
[1756185439473,0.53910929,110450.0,110440.0,0.42551582]
[1756185440579,0.53910929,110450.0,110440.0,0.42547582]
[1756185441674,0.53910929,110450.0,110440.0,0.1810938]
[1756185441861,0.53910929,110450.0,110440.0,0.3340138]
[1756185442066,0.52314372,110450.0,110440.0,0.3340138]